bitfinex/quotes_SOLUSD_20250429
["timestamp","ask_amount","ask_price","bid_price","bid_amount"]
[1745969477731,20.0,145.79,145.78,96.80455743]
[1745969478644,0.03,145.81,145.78,96.80455743]
[1745969478645,20.03,145.81,145.78,96.80455743]
[1745969478845,20.03,145.81,145.8,14.54755743]
[1745969479548,20.03,145.81,145.8,96.80455743]
[1745969479727,20.03,145.81,145.8,82.257]
[1745969479928,34.57755743,145.81,145.8,82.257]
[1745969480142,20.03,145.81,145.8,82.257]
[1745969480321,20.03,145.81,145.8,96.80455743]
[1745969481750,20.03,145.81,145.8,82.257]
[1745969482326,20.03,145.81,145.8,96.80455743]
[1745969484937,0.03,145.84,145.81,62.227]
[1745969485132,0.03,145.84,145.82,14.54755743]
[1745969485460,0.03,145.84,145.81,62.227]
[1745969485461,20.0,145.83,145.81,62.227]
[1745969485655,34.54755743,145.83,145.81,62.227]
[1745969485833,14.54755743,145.82,145.81,62.227]
[1745969486031,20.0,145.81,145.78,62.227]
[1745969486250,20.0,145.81,145.78,76.77455743]
[1745969486848,20.0,145.81,145.79,14.54755743]
[1745969489752,20.0,145.83,145.8,14.54755743]
[1745969489958,20.0,145.83,145.79,62.227]
[1745969489959,1.6573,145.84,145.82,14.54755743]
[1745969490145,1.6573,145.84,145.82,76.77455743]
[1745969490651,0.03,145.84,145.82,76.77455743]
[1745969490831,0.03,145.84,145.83,14.54755743]
[1745969491036,0.03,145.84,145.83,76.77455743]
[1745969492250,0.03,145.85,145.83,102.77455743]
[1745969492457,0.03,145.85,145.84,14.54755743]
[1745969493536,0.03,145.85,145.81,14.54755743]
[1745969493844,0.03,145.85,145.84,14.54755743]
[1745969501360,0.03,145.85,145.81,102.77455743]
[1745969501539,20.0,145.82,145.79,62.227]
[1745969501746,34.54755743,145.82,145.79,62.227]
[1745969502055,14.54755743,145.81,145.79,62.227]
[1745969502258,20.0,145.82,145.79,76.77455743]
[1745969502650,34.54755743,145.82,145.79,62.227]
[1745969503849,20.0,145.82,145.79,62.227]
[1745969504547,34.54755743,145.82,145.79,62.227]
[1745969505362,20.0,145.82,145.79,62.227]
[1745969506137,20.0,145.82,145.79,76.77455743]
[1745969507070,20.0,145.82,145.8,14.54755743]
[1745969507459,20.0,145.8,145.79,76.77455743]
[1745969510866,20.0,145.8,145.79,14.54755743]
[1745969512161,20.0,145.82,145.79,14.54755743]
[1745969512466,20.0,145.82,145.81,14.54755743]
[1745969512867,20.0,145.84,145.81,14.54755743]
[1745969513053,0.03,145.85,145.83,14.54755743]
[1745969513260,0.03,145.85,145.84,14.54755743]
[1745969514367,20.0,145.84,145.78,94.6894]
[1745969514559,20.0,145.84,145.81,14.54755743]
[1745969515268,20.0,145.84,145.78,94.6894]
[1745969515269,20.0,145.84,145.82,14.54755743]
[1745969516276,0.03,145.85,145.83,14.54755743]
[1745969516474,0.03,145.85,145.84,14.54755743]
[1745969517168,0.03,145.85,145.81,62.227]
[1745969517390,20.0,145.84,145.82,14.54755743]
[1745969518068,20.0,145.84,145.83,14.54755743]
[1745969519186,0.03,145.85,145.83,14.54755743]
[1745969519369,0.03,145.85,145.84,14.54755743]
[1745969519567,0.03,145.85,145.84,76.77455743]
[1745969524877,0.03,145.85,145.84,62.227]
[1745969525179,0.03,145.85,145.84,76.77455743]
[1745969526176,0.03,145.85,145.84,62.227]
[1745969527365,0.03,145.85,145.84,76.77455743]
[1745969527990,20.0,145.84,145.81,62.227]
[1745969528288,34.54755743,145.84,145.81,62.227]
[1745969528491,20.0,145.84,145.81,62.227]
[1745969528902,20.0,145.84,145.81,76.77455743]
[1745969529885,20.0,145.84,145.82,14.54755743]
[1745969530071,20.0,145.84,145.81,76.77455743]
[1745969534270,0.03,145.85,145.83,14.54755743]
[1745969534592,0.03,145.85,145.84,14.54755743]
[1745969536104,0.03,145.85,145.81,76.77455743]
[1745969536295,0.03,145.85,145.84,14.54755743]
[1745969539897,20.03,145.85,145.82,14.54755743]
[1745969540401,20.03,145.85,145.83,14.54755743]
[1745969541899,20.03,145.85,145.84,14.54755743]
[1745969544905,20.03,145.85,145.83,14.54755743]
[1745969545902,20.03,145.85,145.82,14.54755743]
[1745969548500,20.03,145.85,145.83,14.54755743]
[1745969550108,20.03,145.85,145.78,6.5254]
[1745969550402,20.0,145.83,145.81,97.04755743]
[1745969550801,20.0,145.83,145.81,82.5]
[1745969551312,20.0,145.83,145.8,14.54755743]
[1745969551716,20.0,145.83,145.81,14.54755743]
[1745969554012,20.0,145.83,145.8,14.54755743]
[1745969554708,20.0,145.83,145.81,14.54755743]
[1745969555517,20.0,145.83,145.82,14.54755743]
[1745969560186,20.0,145.83,145.81,14.54755743]
[1745969560386,20.0,145.83,145.8,14.54755743]
[1745969560618,20.0,145.83,145.78,82.563]
[1745969560790,20.0,145.83,145.8,14.54755743]
[1745969562195,20.0,145.81,145.8,14.54755743]
[1745969563832,20.0,145.83,145.8,14.54755743]
[1745969564113,20.0,145.83,145.81,14.54755743]
[1745969564813,20.0,145.83,145.78,82.563]
[1745969565013,20.0,145.83,145.8,14.54755743]
[1745969566019,20.0,145.83,145.81,14.54755743]
[1745969567422,20.0,145.83,145.78,82.563]
[1745969567599,20.0,145.83,145.8,14.54755743]
[1745969567801,20.0,145.83,145.79,14.54755743]
[1745969568121,20.0,145.81,145.79,14.54755743]
[1745969570322,20.0,145.81,145.8,14.54755743]
[1745969573108,20.0,145.83,145.8,14.54755743]
[1745969573429,20.0,145.83,145.82,14.54755743]
[1745969576530,21.6528,145.85,145.82,14.54755743]
[1745969577321,20.0,145.83,145.81,14.54755743]
[1745969577828,20.0,145.83,145.82,14.54755743]
[1745969582239,20.03,145.85,145.82,14.54755743]
[1745969582425,20.03,145.85,145.83,14.54755743]
[1745969583326,20.03,145.85,145.82,14.54755743]
[1745969583545,0.03,145.87,145.85,18.64964886]
[1745969583707,0.03,145.87,145.86,14.54755743]
[1745969584634,0.03,145.87,145.86,72.82215636]
[1745969584832,0.03,145.91,145.89,26.0]
[1745969585006,0.03,145.91,145.89,40.54755743]
[1745969588231,20.0,145.97,145.9,14.54755743]
[1745969588433,20.0,145.97,145.96,14.54755743]
[1745969588608,20.03,145.99,145.96,97.04755743]
[1745969588935,0.03,145.99,145.98,14.54755743]
[1745969589109,0.03,145.99,145.98,97.04755743]
[1745969589934,10.71319615,146.04,146.0,82.47]
[1745969590234,10.71319615,146.04,146.02,14.54755743]
[1745969590739,10.71319615,146.04,145.98,82.47]
[1745969590740,20.0,146.01,145.98,82.47]
[1745969590923,20.0,146.01,145.98,97.01755743]
[1745969591412,20.0,146.01,145.99,14.54755743]
[1745969592643,20.0,146.01,145.98,82.47]
[1745969593107,20.0,146.01,145.99,14.54755743]
[1745969594716,20.0,146.01,146.0,14.54755743]
[1745969594926,20.0,146.01,145.99,14.54755743]
[1745969595137,34.54755743,146.01,145.98,82.47]
[1745969595947,20.0,146.01,145.98,97.01755743]
[1745969597250,20.0,146.01,145.99,14.54755743]
[1745969599544,20.0,146.01,146.0,14.54755743]
[1745969604426,0.28432314,146.04,146.0,14.54755743]
[1745969604427,20.0,146.04,146.0,14.54755743]
[1745969604770,20.0,146.04,146.03,14.54755743]
[1745969605429,20.0,146.04,146.02,14.54755743]
[1745969605628,20.0,146.04,146.01,14.54755743]
[1745969605936,20.0,146.04,146.02,14.54755743]
[1745969606951,20.0,146.04,146.01,14.54755743]
[1745969607125,20.0,146.02,146.01,14.54755743]
[1745969610054,20.0,146.04,146.01,14.54755743]
[1745969610730,20.0,146.04,146.02,14.54755743]
[1745969613734,20.14216157,146.01,146.0,82.47]
[1745969613937,20.0,145.99,145.96,97.01755743]
[1745969614248,20.0,145.99,145.97,14.54755743]
[1745969616051,20.0,145.99,145.98,14.54755743]
[1745969616239,20.0,146.01,145.98,14.54755743]
[1745969616547,20.0,146.01,145.99,14.54755743]
[1745969617047,20.0,146.01,146.0,14.54755743]
[1745969617245,20.0,146.03,146.0,14.54755743]
[1745969617425,20.0,146.03,146.02,14.54755743]
[1745969621070,20.0,146.03,146.0,97.01755743]
[1745969621438,20.0,146.03,146.01,14.54755743]
[1745969625856,20.0,146.03,146.0,82.47]
[1745969626066,20.0,146.03,146.01,14.54755743]
[1745969627345,20.0,146.03,146.02,14.54755743]
[1745969629968,20.0,146.03,146.0,97.01755743]
[1745969630171,20.0,146.03,146.01,14.54755743]
[1745969631199,20.0,146.03,146.02,14.54755743]
[1745969632578,20.0,146.03,146.0,82.47]
[1745969632766,20.0,146.03,146.01,14.54755743]
[1745969633080,20.0,146.03,146.0,97.01755743]
[1745969633582,34.54755743,146.03,146.0,82.47]
[1745969634874,20.0,146.03,146.0,97.01755743]
[1745969635088,20.0,146.03,146.01,14.54755743]
[1745969640766,20.0,146.05,146.02,14.54755743]
[1745969640971,20.0,146.05,146.03,14.54755743]
[1745969641184,20.0,146.03,146.0,97.01755743]
[1745969641370,20.0,146.03,146.0,82.47]
[1745969641575,20.0,146.03,146.0,97.01755743]
[1745969642388,34.54755743,146.03,146.0,82.47]
[1745969644201,20.0,146.03,146.0,97.01755743]
[1745969646011,20.0,146.03,146.0,14.54755743]
[1745969646299,20.0,146.03,145.96,108.47]
[1745969646495,20.0,146.03,146.0,14.54755743]
[1745969650502,20.0,146.03,146.01,14.54755743]
[1745969650691,20.0,146.03,146.02,14.54755743]
[1745969650873,20.0,146.03,146.01,14.54755743]
[1745969651078,20.0,146.03,146.0,14.54755743]
[1745969653801,20.0,146.03,146.01,14.54755743]
[1745969654185,20.0,146.03,146.02,14.54755743]
[1745969654913,20.0,146.03,146.01,14.54755743]
[1745969655404,20.0,146.03,146.02,14.54755743]
[1745969656799,20.0,146.03,146.01,14.54755743]
[1745969656979,20.0,146.03,145.96,108.47]
[1745969657180,20.0,146.03,146.01,14.54755743]
[1745969661702,20.0,146.03,145.96,108.47]
[1745969661880,20.0,146.03,146.0,14.54755743]
[1745969662280,20.0,146.03,145.98,14.54755743]
[1745969662281,34.54755743,146.03,145.98,14.54755743]
[1745969662682,20.0,146.01,145.99,14.54755743]
[1745969662890,20.0,146.01,145.98,14.54755743]
[1745969663089,20.0,146.01,145.99,14.54755743]
[1745969668783,20.0,146.01,145.96,108.47]
[1745969668994,20.0,146.01,145.98,14.54755743]
[1745969669398,20.0,146.01,145.99,14.54755743]
[1745969672711,20.0,146.01,145.96,108.47]
[1745969672922,20.0,146.01,145.98,14.54755743]
[1745969673305,20.0,146.01,145.99,14.54755743]
[1745969673814,20.0,146.01,146.0,14.54755743]
[1745969675208,0.14216157,146.03,146.0,14.54755743]
[1745969675209,20.0,146.03,146.0,14.54755743]
[1745969675422,20.0,146.03,146.02,14.54755743]
[1745969675716,20.0,146.03,146.01,14.54755743]
[1745969675899,20.0,146.03,146.02,14.54755743]
[1745969676303,20.0,146.05,146.02,14.54755743]
[1745969676499,20.0,146.05,146.04,14.54755743]
[1745969677304,20.03,146.07,146.04,14.54755743]
[1745969677517,20.03,146.07,146.06,14.54755743]
[1745969678393,0.03,146.07,146.06,14.54755743]
[1745969679824,0.03,146.07,146.05,14.54755743]
[1745969680918,0.03,146.07,146.06,14.54755743]
[1745969681120,20.03,146.07,146.02,108.47]
[1745969681307,20.03,146.07,146.05,14.54755743]
[1745969682619,20.03,146.07,146.04,14.54755743]
[1745969683924,20.03,146.07,146.06,14.54755743]
[1745969684121,0.03,146.07,146.06,14.54755743]
[1745969685119,0.03,146.07,146.06,97.01755743]
[1745969686721,0.03,146.07,146.06,103.22085743]
[1745969689427,0.03,146.07,146.06,97.01755743]
[1745969689620,0.03,146.07,146.04,82.47]
[1745969689827,20.03,146.07,146.06,14.54755743]
[1745969690002,0.03,146.07,146.06,14.54755743]
[1745969692938,0.03,146.07,146.06,97.01755743]
[1745969699240,0.03,146.07,146.06,123.01755743]
[1745969700130,1.0087478,146.09,146.06,143.66531486]
[1745969700357,1.0087478,146.09,146.08,29.09511486]
[1745969700569,1.0087478,146.09,146.08,97.01755743]
[1745969701463,1.0087478,146.09,146.08,111.56511486]
[1745969702364,0.03,146.13,146.11,26.0]
[1745969702668,0.03,146.13,146.12,14.54755743]
[1745969706862,20.03,146.13,146.11,82.47]
[1745969707158,20.03,146.13,146.11,97.01755743]
[1745969707569,20.03,146.13,146.1,14.54755743]
[1745969709470,0.03,146.18,146.16,26.0]
[1745969709665,0.03,146.18,146.17,14.54755743]
[1745969709977,0.03,146.18,146.15,26.0]
[1745969710157,0.03,146.18,146.17,14.54755743]
[1745969713470,0.03,146.18,146.16,14.54755743]
[1745969713671,20.0,146.17,146.14,14.54755743]
[1745969713982,34.54755743,146.17,146.13,14.54755743]
[1745969714578,34.54755743,146.17,146.12,108.47]
[1745969714779,20.0,146.17,146.13,14.54755743]
[1745969714957,20.0,146.17,146.14,14.54755743]
[1745969716577,20.0,146.17,146.12,108.47]
[1745969716876,20.0,146.17,146.13,14.54755743]
[1745969717484,20.0,146.17,146.12,82.47]
[1745969717783,20.0,146.13,146.1,97.01755743]
[1745969717962,20.0,146.13,146.1,82.47]
[1745969719171,20.0,146.13,146.1,97.01755743]
[1745969719370,20.0,146.13,146.11,14.54755743]
[1745969719562,20.0,146.1,146.08,23.12229972]
[1745969719763,20.0,146.1,146.07,23.12229972]
[1745969720270,20.0,146.1,146.08,23.12229972]
[1745969720464,20.0,146.1,146.07,23.12229972]
[1745969721080,20.0,146.1,146.05,108.47]
[1745969721081,20.0,146.06,146.02,82.47]
[1745969721265,20.0,146.06,146.03,23.12229972]
[1745969721767,20.0,146.06,146.04,23.12229972]
[1745969724784,20.0,146.06,146.05,23.12229972]
[1745969725376,20.0,146.06,146.04,23.12229972]
[1745969727266,20.0,146.06,146.03,23.12229972]
[1745969728284,20.0,146.06,146.04,23.12229972]
[1745969728786,20.0,146.06,146.02,108.47]
[1745969729165,20.0,146.06,146.04,23.12229972]
[1745969734993,20.0,146.04,146.02,105.59229972]
[1745969735171,20.0,146.04,146.02,82.47]
[1745969735371,20.0,146.04,146.01,23.12229972]
[1745969736191,20.0,146.02,146.0,23.18529972]
[1745969736393,20.0,146.02,146.01,23.12229972]
[1745969741504,20.0,146.02,146.01,14.46544885]
[1745969748117,20.0,146.02,146.0,10.859521]
[1745969748295,20.0,146.02,146.01,14.46544885]
[1745969756121,20.0,146.02,146.0,10.859521]
[1745969756423,20.0,146.02,146.01,14.46544885]
[1745969758010,20.0,146.04,146.01,14.46544885]
[1745969758212,20.0,146.04,146.03,14.46544885]
[1745969760520,20.0,146.04,146.01,14.46544885]
[1745969761035,20.0,146.04,146.02,14.46544885]
[1745969761340,20.0,146.04,146.0,93.329521]
[1745969761516,20.0,146.04,146.02,14.46544885]
[1745969762223,20.0,146.04,146.01,14.46544885]
[1745969762405,20.0,146.04,146.0,107.79496985]
[1745969763326,20.0,146.04,146.01,14.46544885]
[1745969764497,20.0,146.02,146.0,107.79496985]
[1745969765519,20.0,146.02,146.0,93.329521]
[1745969765721,34.46544885,146.02,146.0,10.859521]
[1745969766610,20.0,146.02,146.0,10.859521]
[1745969775520,1.51007294,146.01,146.0,10.859521]
[1745969775914,0.14216157,146.01,146.0,10.859521]
[1745969776530,21.36791137,146.02,146.0,25.32496985]
[1745969776745,20.0,146.02,146.0,25.32496985]
[1745969777815,20.0,146.02,146.0,10.859521]
[1745969778635,20.0,146.02,146.0,25.32496985]
[1745969778827,20.0,146.02,146.0,10.859521]
[1745969780415,35.83336022,146.02,146.0,10.859521]
[1745969780615,21.36791137,146.02,146.0,10.859521]
[1745969781743,35.83336022,146.02,146.0,10.859521]
[1745969782417,21.36791137,146.02,146.0,10.859521]
[1745969782929,35.83336022,146.02,146.0,10.859521]
[1745969783237,15.03409513,146.01,146.0,10.859521]
[1745969783737,33.68374399,146.01,146.0,10.859521]
[1745969784619,20.0,146.02,146.0,10.859521]
[1745969785442,1.36791137,146.01,146.0,10.859521]
[1745969785640,1.51007294,146.01,146.0,10.859521]
[1745969785830,1.93655765,146.01,146.0,10.859521]
[1745969788657,20.0,146.02,146.0,10.859521]
[1745969790022,0.14216157,146.01,146.0,10.859521]
[1745969790647,1.51007294,146.01,146.0,10.859521]
[1745969793245,1.93655765,146.01,146.0,10.859521]
[1745969793546,16.4020065,146.01,146.0,10.859521]
[1745969796048,1.93655765,146.01,146.0,10.859521]
[1745969799446,16.4020065,146.01,146.0,10.859521]
[1745969799841,35.05165536,146.01,146.0,10.859521]
[1745969815640,20.30188337,146.01,146.0,10.859521]
[1745969815966,35.05165536,146.01,146.0,10.859521]
[1745969825869,62.65675536,146.01,146.0,5.25892336]
[1745969826074,65.21829514,145.99,145.98,0.063]
[1745969826247,81.05165536,145.99,145.98,0.063]
[1745969830371,94.60949379,145.99,145.98,0.063]
[1745969830671,94.75165536,145.99,145.98,0.063]
[1745969835392,68.75165536,145.99,145.98,0.063]
[1745969839394,54.28620651,145.99,145.98,0.063]
[1745969839771,68.75165536,145.99,145.98,0.063]
[1745969845699,63.55312301,145.99,145.98,0.063]
[1745969851685,54.28620651,145.99,145.98,0.063]
[1745969851890,63.55312301,145.99,145.98,0.063]
[1745969856080,20.0,145.99,145.98,9.3299165]
[1745969856503,20.0,145.99,145.98,17.0748165]
[1745969857616,20.0,145.99,145.98,22.27575171]
[1745969858505,20.0,146.01,145.98,22.27575171]
[1745969858704,20.0,146.01,146.0,14.46785171]
[1745969863518,20.0,146.01,145.98,7.8079]
[1745969863816,20.0,146.01,146.0,14.46785171]
[1745969866705,20.0,146.03,146.0,14.46785171]
[1745969866916,20.0,146.05,146.02,28.93570342]
[1745969867222,20.0,146.05,146.04,14.46785171]
[1745969869919,20.0,146.05,146.04,14.46785171]
[1745969877029,0.03,146.06,146.04,14.46785171]
[1745969877232,0.03,146.06,146.05,14.46785171]
[1745969881326,0.03,146.06,146.05,98.30687442]
[1745969881721,0.03,146.07,146.05,104.30997442]
[1745969881926,0.03,146.07,146.06,40.46785171]
[1745969883834,20.0,146.06,146.05,14.46785171]
[1745969885030,0.03,146.07,146.05,14.46785171]
[1745969885212,0.03,146.07,146.06,14.46785171]
[1745969886536,0.03,146.07,146.06,40.46785171]
[1745969886831,0.03,146.07,146.06,122.93785171]
[1745969887045,0.03,146.07,146.06,129.58665171]
[1745969890226,0.03,146.07,146.06,130.95540623]
[1745969890832,0.03,146.07,146.06,129.58665171]
[1745969891532,0.03,146.11,146.09,26.0]
[1745969891734,0.03,146.11,146.1,14.46785171]
[1745969897537,0.03,146.11,146.09,96.93785171]
[1745969897538,20.0,146.1,146.09,82.47]
[1745969898552,20.0,146.1,146.09,96.93785171]
[1745969901151,20.0,146.1,146.09,14.46785171]
[1745969904673,20.0,146.1,146.07,108.47]
[1745969904859,20.0,146.1,146.09,14.46785171]
[1745969916976,20.0,146.1,146.09,28.93570342]
[1745969917270,0.03,146.15,146.14,14.46785171]
[1745969919956,20.03,146.15,146.11,26.0]
[1745969920172,20.03,146.15,146.13,14.46785171]
[1745969920362,20.03,146.15,146.14,14.46785171]
[1745969932577,0.03,146.15,146.14,14.46785171]
[1745969935577,0.03,146.15,146.14,96.93785171]
[1745969935781,0.03,146.17,146.15,44.64964886]
[1745969935987,0.03,146.21,146.16,56.30350814]
[1745969936294,0.03,146.21,146.2,14.46785171]
[1745969936692,0.03,146.25,146.23,26.0]
[1745969936878,0.03,146.25,146.24,14.46785171]
[1745969937076,0.6576381,146.28,146.24,33.11750057]
[1745969937287,0.6576381,146.28,146.27,40.46785171]
[1745969937591,0.6576381,146.28,146.27,122.93785171]
[1745969938273,0.6576381,146.28,146.27,96.93785171]
[1745969939614,10.64763652,146.33,146.3,28.93570342]
[1745969939779,10.64763652,146.33,146.3,82.47]
[1745969939980,10.64763652,146.33,146.32,14.46785171]
[1745969940277,10.64763652,146.33,146.3,82.47]
[1745969940478,20.0,146.31,146.26,82.47]
[1745969940901,20.0,146.31,146.28,14.46785171]
[1745969941103,20.0,146.31,146.29,14.46785171]
[1745969941901,20.0,146.31,146.28,14.46785171]
[1745969942215,20.0,146.27,146.23,82.47]
[1745969942498,20.0,146.27,146.24,14.46785171]
[1745969942881,20.0,146.27,146.25,14.46785171]
[1745969943576,20.0,146.27,146.23,82.47]
[1745969943779,20.0,146.27,146.26,14.46785171]
[1745969944684,20.0,146.27,146.23,96.93785171]
[1745969944685,20.0,146.27,146.23,82.47]
[1745969944886,20.0,146.27,146.25,14.46785171]
[1745969945281,20.0,146.27,146.26,14.46785171]
[1745969945477,20.0,146.27,146.23,82.47]
[1745969945677,20.0,146.27,146.24,23.06500822]
[1745969949701,20.0,146.25,146.22,23.06500822]
[1745969949998,20.0,146.25,146.22,49.06500822]
[1745969950176,20.0,146.25,146.24,23.06500822]
[1745969953096,0.14216157,146.29,146.24,23.06500822]
[1745969953097,20.0,146.27,146.24,23.06500822]
[1745969953305,20.0,146.27,146.23,23.06500822]
[1745969955507,20.0,146.25,146.22,82.47]
[1745969955690,43.06500822,146.25,146.22,82.47]
[1745969955879,43.06500822,146.23,146.18,82.47]
[1745969956185,43.06500822,146.21,146.14,102.2297]
[1745969956389,43.06500822,146.21,146.17,23.06500822]
[1745969956390,20.0,146.21,146.17,23.06500822]
[1745969956613,20.0,146.21,146.18,23.06500822]
[1745969957902,24.72450822,146.23,146.14,108.47]
[1745969957903,20.0,146.19,146.14,108.47]
[1745969958082,20.0,146.19,146.14,82.47]
[1745969958291,20.0,146.17,146.14,23.06500822]
[1745969959402,20.0,146.17,146.13,26.0]
[1745969959621,20.0,146.2,146.16,23.06500822]
[1745969959923,20.0,146.2,146.13,109.8383682]
[1745969960217,20.0,146.2,146.16,23.06500822]
[1745969962593,20.0,146.2,146.17,23.06500822]
[1745969963125,20.0,146.2,146.16,23.06500822]
[1745969964331,20.0,146.2,146.17,23.06500822]
[1745969964695,20.0,146.2,146.19,23.06500822]
[1745969965221,20.0,146.2,146.18,23.06500822]
[1745969965714,20.0,146.2,146.19,23.06500822]
[1745969966516,20.0,146.2,146.18,23.06500822]
[1745969966906,20.0,146.2,146.17,23.06500822]
[1745969967221,20.0,146.2,146.16,23.06500822]
[1745969968315,20.0,146.2,146.17,23.06500822]
[1745969971234,20.0,146.2,146.13,108.47]
[1745969971433,20.0,146.2,146.17,23.06500822]
[1745969975031,20.0,146.2,146.13,108.47]
[1745969975218,20.0,146.18,146.16,23.06500822]
[1745969975632,20.0,146.18,146.17,14.4351394]
[1745969986734,20.0,146.18,146.13,108.47]
[1745969986936,20.0,146.18,146.17,14.4351394]
[1745969987338,20.0,146.18,146.13,108.47]
[1745969987540,20.0,146.18,146.17,14.4351394]
[1745969989738,20.0,146.18,146.13,108.47]
[1745969990055,20.0,146.18,146.17,14.4351394]
[1745969991450,20.0,146.22,146.17,96.9051394]
[1745969991623,20.0,146.24,146.21,14.4351394]
[1745969991822,20.0,146.24,146.23,14.4351394]
[1745970001456,20.0,146.24,146.17,89.84083944]
[1745970001636,34.4351394,146.24,146.2,40.4351394]
[1745970001840,34.4351394,146.24,146.2,14.4351394]
[1745970002039,20.0,146.24,146.2,14.4351394]
[1745970002857,20.0,146.24,146.21,14.4351394]
[1745970004564,20.0,146.22,146.18,26.0]
[1745970004766,34.4351394,146.22,146.18,14.4351394]
[1745970004971,34.4351394,146.22,146.17,82.47]
[1745970004972,20.0,146.2,146.17,96.9051394]
[1745970005269,20.0,146.2,146.17,14.4351394]
[1745970006069,20.0,146.2,146.18,14.4351394]
[1745970006252,20.0,146.22,146.19,14.4351394]
[1745970006455,20.0,146.22,146.2,14.4351394]
[1745970006655,20.0,146.22,146.18,14.4351394]
[1745970007648,34.4351394,146.22,146.18,14.4351394]
[1745970007946,20.0,146.2,146.17,14.4351394]
[1745970008156,20.0,146.2,146.18,14.4351394]
[1745970010349,20.0,146.2,146.17,14.4351394]
[1745970010769,20.0,146.2,146.15,108.47]
[1745970010958,20.0,146.2,146.16,14.4351394]
[1745970011622,20.0,146.2,146.17,14.4351394]
[1745970012671,20.0,146.2,146.15,108.47]
[1745970012863,20.0,146.2,146.16,14.4351394]
[1745970013372,20.0,146.16,146.14,14.4351394]
[1745970013748,20.0,146.16,146.15,14.4351394]
[1745970013960,20.0,146.18,146.15,14.4351394]
[1745970014156,20.0,146.18,146.13,26.0]
[1745970014372,20.0,146.18,146.16,14.4351394]
[1745970015482,20.0,146.18,146.15,14.4351394]
[1745970015978,20.0,146.18,146.16,14.4351394]
[1745970016788,20.0,146.18,146.15,14.4351394]
[1745970017685,20.0,146.18,146.14,14.4351394]
[1745970018681,20.0,146.16,146.14,14.4351394]
[1745970020163,20.0,146.16,146.12,82.47]
[1745970020480,20.0,146.16,146.15,14.4351394]
[1745970021688,20.0,146.16,146.14,14.4351394]
[1745970023865,20.0,146.16,146.12,82.47]
[1745970024068,20.0,146.16,146.14,14.4351394]
[1745970031973,20.0,146.13,146.11,0.063]
[1745970032381,20.0,146.16,146.12,14.4351394]
[1745970032584,20.0,146.16,146.13,14.4351394]
[1745970033182,20.0,146.12,146.11,0.063]
[1745970033370,34.4351394,146.12,146.11,0.063]
[1745970033575,53.65343454,146.12,146.11,0.063]
[1745970036972,39.21829514,146.12,146.11,0.063]
[1745970037177,53.65343454,146.12,146.11,0.063]
[1745970053003,20.0,146.12,146.11,0.063]
[1745970053610,34.4351394,146.12,146.11,0.063]
[1745970057989,35.00378568,146.12,146.11,0.063]
[1745970058190,53.65343454,146.12,146.11,0.063]
[1745970080425,35.00378568,146.12,146.11,0.063]
[1745970080610,34.57730097,146.12,146.11,0.063]
[1745970080810,35.00378568,146.12,146.11,0.063]
[1745970081530,29.82019334,146.12,146.11,0.063]
[1745970084216,20.0,146.12,146.11,0.063]
[1745970084416,29.25154706,146.12,146.11,0.063]
[1745970085128,20.0,146.12,146.11,0.063]